fUST/lending_fUST_20241227
["ID","MTS","AMOUNT","RATE_DAILY","PERIOD"]
[346802168,1735297840158,-500.0,9.54e-05,2]
[346802170,1735297840168,-2775.97,9.54e-05,2]
[346802172,1735297840179,-939.54,9.54e-05,2]
[346802174,1735297840190,-515.98,9.54e-05,2]
[346802176,1735297840200,-1096.21,9.54e-05,2]
[346802178,1735297840211,-500.0,9.54e-05,2]
[346802180,1735297840221,-500.0,9.54e-05,2]
[346802182,1735297840231,-500.0,9.54e-05,2]
[346802184,1735297840242,-500.0,9.54e-05,2]
[346802187,1735297840252,-120.9578062,9.541e-05,2]
[346802189,1735297840267,-379.0421938,9.541e-05,2]
[346802191,1735297840278,-530.19299482,9.541e-05,2]
[346802193,1735297840288,-500.0,9.541e-05,2]
[346802194,1735297840298,-205.20981138,9.541e-05,2]
[346802195,1735297840312,-337.74018862,9.541e-05,2]
[346802196,1735297840323,-500.0,9.541e-05,2]
[346802197,1735297840333,-586.62904564,9.541e-05,2]
[346802199,1735297840343,-500.0,9.541e-05,2]
[346802201,1735297840354,-249.06326457,9.541e-05,2]
[346802204,1735297840367,-250.93673543,9.541e-05,2]
[346802206,1735297840377,-500.0,9.541e-05,2]
[346802208,1735297840387,-538.9,9.541e-05,2]
[346802210,1735297840397,-500.0,9.541e-05,2]
[346802212,1735297840408,-500.0,9.541e-05,2]
[346802214,1735297840418,-500.0,9.541e-05,2]
[346802216,1735297840429,-515.07,9.541e-05,2]
[346802220,1735297840598,-500.0,9.541e-05,2]
[346802221,1735297840607,-500.0,9.541e-05,2]
[346802222,1735297840617,-500.0,9.541e-05,2]
[346802223,1735297840627,-314.10836071,9.541e-05,2]
[346802224,1735297840636,-500.0,9.541e-05,2]
[346802225,1735297840645,-500.0,9.541e-05,2]
[346802226,1735297840655,-500.0,9.541e-05,2]
[346802227,1735297840664,-500.0,9.541e-05,2]
[346802228,1735297840673,-500.0,9.541e-05,2]
[346802229,1735297840682,-500.0,9.541e-05,2]
[346802230,1735297840692,-500.0,9.541e-05,2]
[346802231,1735297840702,-500.0,9.541e-05,2]
[346802232,1735297840711,-500.0,9.541e-05,2]
[346802233,1735297840721,-500.0,9.541e-05,2]
[346802234,1735297840731,-500.0,9.541e-05,2]
[346802235,1735297840740,-500.0,9.541e-05,2]
[346802236,1735297840750,-192.03336119,9.541e-05,2]
[346802237,1735297840760,-306.36057241,9.541e-05,2]
[346802238,1735297840770,-500.0,9.542e-05,2]
[346802239,1735297840780,-500.0,9.542e-05,2]
[346802240,1735297840789,-500.0,9.542e-05,2]
[346802241,1735297840799,-500.0,9.542e-05,2]
[346802242,1735297840811,-500.0,9.542e-05,2]
[346802243,1735297840821,-500.0,9.542e-05,2]
[346802244,1735297840835,-500.0,9.542e-05,2]
[346802245,1735297840844,-500.0,9.542e-05,2]
[346802246,1735297840854,-500.0,9.542e-05,2]
[346802247,1735297840863,-500.0,9.542e-05,2]
[346802248,1735297840873,-544.94682326,9.542e-05,2]
[346802249,1735297840883,-466.7267193,9.542e-05,2]
[346802250,1735297840892,-500.0,9.542e-05,2]
[346802251,1735297840901,-500.0,9.542e-05,2]
[346802252,1735297840912,-500.0,9.542e-05,2]
[346802253,1735297840922,-500.0,9.542e-05,2]
[346802254,1735297840931,-500.0,9.542e-05,2]
[346802255,1735297840941,-500.0,9.542e-05,2]
[346802256,1735297840950,-500.0,9.542e-05,2]
[346802257,1735297840960,-500.0,9.542e-05,2]
[346802258,1735297840970,-778.49,9.543e-05,2]
[346802259,1735297840981,-500.0,9.543e-05,2]
[346802260,1735297840991,-3326.5650548,9.543e-05,2]
[346802261,1735297841003,-5291.5649452,9.543e-05,2]
[346802262,1735297841014,-500.0,9.543e-05,2]
[346802263,1735297841023,-500.0,9.543e-05,2]
[346802264,1735297841033,-500.0,9.543e-05,2]
[346802265,1735297841042,-500.0,9.543e-05,2]
[346802266,1735297841051,-500.0,9.543e-05,2]
[346802267,1735297841061,-521.37,9.543e-05,2]
[346802268,1735297841071,-385.49220974,9.544e-05,2]
[346802269,1735297841080,-500.0,9.544e-05,2]
[346802270,1735297841090,-500.0,9.544e-05,2]
[346802271,1735297841099,-500.0,9.544e-05,2]
[346802272,1735297841108,-283.22455287,9.544e-05,2]
[346802273,1735297841118,-500.0,9.544e-05,2]
[346802274,1735297841127,-500.0,9.544e-05,2]
[346802275,1735297841137,-361.78813914,9.544e-05,2]
[346802276,1735297841147,-500.0,9.544e-05,2]
[346802277,1735297841156,-500.0,9.544e-05,2]
[346802278,1735297841166,-500.0,9.544e-05,2]
[346802279,1735297841175,-500.0,9.544e-05,2]
[346802280,1735297841184,-500.0,9.546e-05,2]
[346802281,1735297841194,-500.0,9.546e-05,2]
[346802282,1735297841203,-3439.75,9.546e-05,2]
[346802283,1735297841213,-500.0,9.546e-05,2]
[346802284,1735297841223,-228.38,9.546e-05,2]
[346802285,1735297841232,-500.0,9.546e-05,2]
[346802286,1735297841241,-500.0,9.546e-05,2]
[346802287,1735297841250,-500.0,9.548e-05,2]
[346802288,1735297841260,-2272.09,9.548e-05,2]
[346802289,1735297841270,-409.678414,9.548e-05,2]
[346802290,1735297841279,-2201.14,9.55e-05,2]
[346802291,1735297841288,-500.0,9.813e-05,2]
[346802292,1735297841297,-675.59,9.813e-05,2]
[346802293,1735297841307,-341.6,9.813e-05,2]
[346802294,1735297841317,-571.94985581,9.814e-05,2]
[346802295,1735297841327,-841.97,9.814e-05,2]
[346802296,1735297841336,-2775.97,9.814e-05,2]
[346802297,1735297841346,-939.54,9.814e-05,2]
[346802298,1735297841355,-515.98,9.814e-05,2]
[346802299,1735297841365,-1096.21,9.814e-05,2]
[346802300,1735297841374,-500.0,9.814e-05,2]
[346802301,1735297841383,-500.0,9.814e-05,2]
[346802302,1735297841393,-500.0,9.814e-05,2]
[346802303,1735297841402,-500.0,9.815e-05,2]
[346802304,1735297841411,-500.0,9.815e-05,2]
[346802305,1735297841422,-500.0,9.815e-05,2]
[346802306,1735297841431,-500.0,9.815e-05,2]
[346802307,1735297841441,-500.0,9.815e-05,2]
[346802308,1735297841450,-515.07,9.815e-05,2]
[346802309,1735297841459,-500.0,9.815e-05,2]
[346802310,1735297841469,-576.25,9.815e-05,2]
[346802311,1735297841479,-500.0,9.815e-05,2]
[346802312,1735297841489,-500.0,9.815e-05,2]
[346802313,1735297841498,-500.0,9.815e-05,2]
[346802314,1735297841508,-500.0,9.815e-05,2]
[346802315,1735297841517,-500.0,9.815e-05,2]
[346802316,1735297841526,-500.0,9.815e-05,2]
[346802317,1735297841535,-500.0,9.815e-05,2]
[346802318,1735297841545,-500.0,9.815e-05,2]
[346802319,1735297841554,-500.0,9.816e-05,2]
[346802320,1735297841564,-500.0,9.816e-05,2]
[346802321,1735297841573,-500.0,9.816e-05,2]
[346802322,1735297841584,-500.0,9.816e-05,2]
[346802323,1735297841593,-500.0,9.816e-05,2]
[346802324,1735297841602,-500.0,9.816e-05,2]
[346802325,1735297841612,-778.49,9.817e-05,2]
[346802326,1735297841621,-8618.13,9.817e-05,2]
[346802327,1735297841631,-500.0,9.817e-05,2]
[346802328,1735297841640,-500.0,9.817e-05,2]
[346802329,1735297841649,-500.0,9.817e-05,2]
[346802330,1735297841659,-500.0,9.817e-05,2]
[346802331,1735297841668,-500.0,9.818e-05,2]
[346802332,1735297841678,-500.0,9.818e-05,2]
[346802333,1735297841687,-500.0,9.818e-05,2]
[346802334,1735297841696,-3439.75,9.82e-05,2]
[346802335,1735297841705,-500.0,9.822e-05,2]
[346802336,1735297841715,-2272.09,9.822e-05,2]
[346802337,1735297841724,-2201.14,9.824e-05,2]
[346802338,1735297841733,-294.32282513,0.00010087,2]
[346802339,1735297841743,-675.59,0.00010087,2]
[346802340,1735297841752,-841.97,0.00010088,2]
[346802341,1735297841762,-2775.97,0.00010088,2]
[346802342,1735297841772,-939.54,0.00010088,2]
[346802343,1735297841781,-515.98,0.00010088,2]
[346802344,1735297841791,-1096.21,0.00010088,2]
[346802345,1735297841800,-500.0,0.00010088,2]
[346802346,1735297841809,-500.0,0.00010088,2]
[346802347,1735297841820,-500.0,0.00010088,2]
[346802348,1735297841832,-500.0,0.00010089,2]
[346802349,1735297841842,-500.0,0.00010089,2]
[346802350,1735297841851,-500.0,0.00010089,2]
[346802351,1735297841861,-515.07,0.00010089,2]
[346802352,1735297841871,-500.0,0.00010089,2]
[346802353,1735297841880,-500.0,0.00010089,2]
[346802354,1735297841890,-500.0,0.00010089,2]
[346802355,1735297841899,-500.0,0.00010089,2]
[346802356,1735297841911,-500.0,0.00010089,2]
[346802357,1735297841921,-500.0,0.00010089,2]
[346802358,1735297841930,-500.0,0.00010089,2]
[346802359,1735297841939,-500.0,0.00010089,2]
[346802360,1735297841949,-500.0,0.0001009,2]
[346802361,1735297841959,-500.0,0.0001009,2]
[346802362,1735297841968,-500.0,0.0001009,2]
[346802363,1735297841978,-500.0,0.0001009,2]
[346802364,1735297841988,-500.0,0.0001009,2]
[346802365,1735297841998,-778.49,0.00010091,2]
[346802366,1735297842007,-8618.13,0.00010091,2]
[346802367,1735297842017,-500.0,0.00010091,2]
[346802368,1735297842026,-500.0,0.00010091,2]
[346802369,1735297842035,-500.0,0.00010091,2]
[346802370,1735297842045,-500.0,0.00010091,2]
[346802371,1735297842054,-500.0,0.00010092,2]
[346802372,1735297842064,-553.35,0.00010092,2]
[346802373,1735297842074,-500.0,0.00010092,2]
[346802374,1735297842084,-3439.75,0.00010094,2]
[346802375,1735297842093,-500.0,0.00010096,2]
[346802376,1735297842103,-2272.09,0.00010096,2]
[346802377,1735297842112,-2201.14,0.00010098,2]
[346802378,1735297842122,-187.99226672,0.00010106,2]
[346802379,1735297842131,-420.0,0.00010192,2]
[346802380,1735297842140,-675.59,0.00010361,2]
[346802381,1735297842151,-841.97,0.00010362,2]
[346802382,1735297842160,-2775.97,0.00010362,2]
[346802383,1735297842170,-939.54,0.00010362,2]
[346802384,1735297842179,-515.98,0.00010362,2]
[346802385,1735297842189,-1096.21,0.00010362,2]
[346802386,1735297842199,-500.0,0.00010362,2]
[346802387,1735297842208,-500.0,0.00010362,2]
[346802388,1735297842218,-500.0,0.00010362,2]
[346802389,1735297842227,-500.0,0.00010363,2]
[346802390,1735297842237,-500.0,0.00010363,2]
[346802391,1735297842246,-500.0,0.00010363,2]
[346802392,1735297842256,-515.07,0.00010363,2]
[346802393,1735297842265,-500.0,0.00010363,2]
[346802394,1735297842274,-500.0,0.00010363,2]
[346802395,1735297842283,-500.0,0.00010363,2]
[346802396,1735297842293,-500.0,0.00010363,2]
[346802397,1735297842302,-500.0,0.00010363,2]
[346802398,1735297842314,-500.0,0.00010363,2]
[346802399,1735297842323,-500.0,0.00010363,2]
[346802400,1735297842334,-500.0,0.00010363,2]
[346802401,1735297842343,-500.0,0.00010364,2]
[346802402,1735297842352,-420.72676656,0.00010364,2]
[346802403,1735297842362,-500.0,0.00010364,2]
[346802404,1735297842371,-778.49,0.00010365,2]
[346802405,1735297842380,-8618.13,0.00010365,2]
[346802406,1735297842391,-500.0,0.00010365,2]
[346802407,1735297842400,-621.22860681,0.00010365,2]
[346802408,1735297842409,-500.0,0.00010365,2]
[346802409,1735297842419,-500.0,0.00010366,2]
[346802410,1735297842428,-3439.75,0.00010368,2]
[346802411,1735297842438,-500.0,0.0001037,2]
[346802412,1735297842447,-2272.09,0.0001037,2]
[346802413,1735297842457,-2201.14,0.00010372,2]
[346802414,1735297842467,-394.0,0.00010506,2]
[346802415,1735297842476,-675.59,0.00010635,2]
[346802416,1735297842486,-841.97,0.00010636,2]
[346802417,1735297842495,-2775.97,0.00010636,2]
[346802418,1735297842504,-939.54,0.00010636,2]
[346802419,1735297842513,-515.98,0.00010636,2]
[346802420,1735297842523,-1096.21,0.00010636,2]
[346802421,1735297842532,-500.0,0.00010636,2]
[346802422,1735297842542,-500.0,0.00010636,2]
[346802423,1735297842552,-500.0,0.00010636,2]
[346802424,1735297842561,-500.0,0.00010637,2]
[346802425,1735297842571,-500.0,0.00010637,2]
[346802426,1735297842581,-500.0,0.00010637,2]
[346802427,1735297842591,-515.07,0.00010637,2]
[346802428,1735297842601,-500.0,0.00010637,2]
[346802429,1735297842610,-500.0,0.00010637,2]
[346802430,1735297842619,-500.0,0.00010637,2]
[346802431,1735297842629,-500.0,0.00010637,2]
[346802432,1735297842639,-500.0,0.00010637,2]
[346802433,1735297842648,-500.0,0.00010637,2]
[346802434,1735297842658,-500.0,0.00010637,2]
[346802435,1735297842668,-500.0,0.00010637,2]
[346802436,1735297842678,-500.0,0.00010638,2]
[346802437,1735297842687,-500.0,0.00010638,2]
[346802438,1735297842697,-778.49,0.00010639,2]
[346802439,1735297842707,-8618.13,0.00010639,2]
[346802440,1735297842716,-500.0,0.00010639,2]
[346802442,1735297842726,-500.0,0.00010639,2]
[346802444,1735297842735,-500.0,0.0001064,2]
[346802446,1735297842744,-3439.75,0.00010642,2]
[346802448,1735297842754,-500.0,0.00010644,2]
[346802450,1735297842763,-2272.09,0.00010644,2]
[346802451,1735297842772,-2201.14,0.00010646,2]
[346802453,1735297842782,-675.59,0.00010909,2]
[346802455,1735297842793,-841.97,0.0001091,2]
[346802457,1735297842802,-2775.97,0.0001091,2]
[346802458,1735297842812,-939.54,0.0001091,2]
[346802459,1735297842822,-515.98,0.0001091,2]
[346802461,1735297842835,-1096.21,0.0001091,2]
[346802463,1735297842845,-500.0,0.0001091,2]
[346802466,1735297842855,-500.0,0.0001091,2]
[346802467,1735297842864,-500.0,0.0001091,2]
[346802468,1735297842876,-500.0,0.00010911,2]
[346802469,1735297842885,-500.0,0.00010911,2]
[346802470,1735297842895,-500.0,0.00010911,2]
[346802471,1735297842904,-515.07,0.00010911,2]
[346802472,1735297842914,-500.0,0.00010911,2]
[346802473,1735297842925,-500.0,0.00010911,2]
[346802474,1735297842934,-500.0,0.00010911,2]
[346802475,1735297842943,-500.0,0.00010911,2]
[346802476,1735297842954,-500.0,0.00010911,2]
[346802477,1735297842963,-500.0,0.00010911,2]
[346802478,1735297842973,-500.0,0.00010911,2]
[346802479,1735297842982,-500.0,0.00010911,2]
[346802480,1735297842991,-500.0,0.00010912,2]
[346802481,1735297843002,-500.0,0.00010912,2]
[346802482,1735297843011,-778.49,0.00010913,2]
[346802483,1735297843021,-8618.13,0.00010913,2]
[346802484,1735297843030,-500.0,0.00010913,2]
[346802485,1735297843039,-356.24215123,0.00010913,2]
[346802486,1735297843049,-500.0,0.00010914,2]
[346802487,1735297843059,-3439.75,0.00010916,2]
[346802488,1735297843069,-500.0,0.00010918,2]
[346802489,1735297843079,-2272.09,0.00010918,2]
[346802490,1735297843089,-2201.14,0.0001092,2]
[346802491,1735297843098,-29739.0675436,0.00010959,2]
[346802492,1735297843108,-151.0,0.00010959,2]
[346802493,1735297843118,-257.785414,0.00010959,2]
[346802494,1735297843127,-152.644708,0.00010959,2]
[346802495,1735297843137,-151.0,0.00010959,2]
[346802496,1735297843147,-187.99226672,0.00011037,2]
[346802497,1735297843157,-675.59,0.00011183,2]
[346802498,1735297843166,-841.97,0.00011184,2]
[346802499,1735297843177,-2775.97,0.00011184,2]
[346802500,1735297843186,-939.54,0.00011184,2]
[346802501,1735297843196,-515.98,0.00011184,2]
[346802502,1735297843206,-1096.21,0.00011184,2]
[346802503,1735297843215,-500.0,0.00011184,2]
[346802504,1735297843225,-500.0,0.00011184,2]
[346802506,1735297843234,-500.0,0.00011184,2]
[346802508,1735297843244,-500.0,0.00011185,2]
[346802510,1735297843255,-500.0,0.00011185,2]
[346802512,1735297843266,-500.0,0.00011185,2]
[346802513,1735297843278,-515.07,0.00011185,2]
[346802515,1735297843289,-500.0,0.00011185,2]
[346802517,1735297843300,-500.0,0.00011185,2]
[346802519,1735297843311,-500.0,0.00011185,2]
[346802521,1735297843320,-500.0,0.00011185,2]
[346802523,1735297843329,-500.0,0.00011185,2]
[346802524,1735297843339,-500.0,0.00011185,2]
[346802525,1735297843348,-500.0,0.00011185,2]
[346802526,1735297843358,-500.0,0.00011185,2]
[346802527,1735297843367,-151.0,0.00011186,2]
[346802528,1735297843376,-151.0,0.00011186,2]
[346802529,1735297843386,-177.708206,0.00011186,2]
[346802530,1735297843395,-177.708206,0.00011186,2]
[346802531,1735297843405,-214.75966239,0.00011186,2]
[346802532,1735297843414,-411.78633442,0.00011186,2]
[346802533,1735297843424,-778.49,0.00011187,2]
[346802534,1735297843433,-8618.13,0.00011187,2]
[346802535,1735297843443,-500.0,0.00011187,2]
[346802536,1735297843452,-500.0,0.00011188,2]
[346802537,1735297843461,-3439.75,0.0001119,2]
[346802538,1735297843471,-500.0,0.00011192,2]
[346802539,1735297843481,-2272.09,0.00011192,2]
[346802540,1735297843491,-2201.14,0.00011194,2]
[346802541,1735297843500,-587.0,0.00011211,2]
[346802542,1735297843510,-1332.0,0.00011371,2]
[346802543,1735297843519,-371.3,0.00011425,2]
[346802544,1735297843529,-228.05615978,0.00011425,2]
[346802545,1735297843539,-675.59,0.00011457,2]
[346802546,1735297843549,-841.97,0.00011458,2]
[346802547,1735297843558,-2775.97,0.00011458,2]
[346802548,1735297843568,-939.54,0.00011458,2]
[346802549,1735297843578,-515.98,0.00011458,2]
[346802550,1735297843588,-1096.21,0.00011458,2]
[346802551,1735297843702,-500.0,0.00011458,2]
[346802552,1735297843712,-500.0,0.00011458,2]
[346802553,1735297843722,-409.37599212,0.00011458,2]
[346802554,1735297843731,-500.0,0.00011459,2]
[346802555,1735297843740,-500.0,0.00011459,2]
[346802556,1735297843750,-500.0,0.00011459,2]
[346802557,1735297843759,-515.07,0.00011459,2]
[346802558,1735297843769,-500.0,0.00011459,2]
[346802559,1735297843778,-500.0,0.00011459,2]
[346802560,1735297843787,-500.0,0.00011459,2]
[346802561,1735297843796,-500.0,0.00011459,2]
[346802562,1735297843806,-500.0,0.00011459,2]
[346802563,1735297843816,-500.0,0.00011459,2]
[346802564,1735297843825,-287.72140752,0.00011459,2]
[346802565,1735297843838,-488.45869115,0.00011459,2]
[346802566,1735297843848,-151.0,0.00011461,2]
[346802567,1735297843857,-778.49,0.00011461,2]
[346802568,1735297843866,-8618.13,0.00011461,2]
[346802569,1735297843877,-500.0,0.00011461,2]
[346802570,1735297843886,-363.83,0.00011462,2]
[346802571,1735297843895,-3439.75,0.00011464,2]
[346802572,1735297843905,-500.0,0.00011466,2]
[346802573,1735297843915,-2272.09,0.00011466,2]
[346802574,1735297843924,-2201.14,0.00011468,2]
[346802575,1735297843934,-675.59,0.00011731,2]
[346802576,1735297843944,-841.97,0.00011732,2]
[346802577,1735297843954,-2775.97,0.00011732,2]
[346802578,1735297843964,-939.54,0.00011732,2]
[346802579,1735297843974,-515.98,0.00011732,2]
[346802580,1735297843983,-1096.21,0.00011732,2]
[346802581,1735297843993,-500.0,0.00011732,2]
[346802582,1735297844002,-500.0,0.00011732,2]
[346802583,1735297844012,-500.0,0.00011733,2]
[346802584,1735297844022,-327.77098756,0.00011733,2]
[346802585,1735297844030,-500.0,0.00011733,2]
[346802586,1735297844038,-515.07,0.00011733,2]
[346802587,1735297844045,-500.0,0.00011733,2]
[346802588,1735297844052,-500.0,0.00011733,2]
[346802589,1735297844059,-500.0,0.00011733,2]
[346802590,1735297844067,-500.0,0.00011733,2]
[346802591,1735297844077,-500.0,0.00011733,2]
[346802592,1735297844085,-500.0,0.00011733,2]
[346802593,1735297844092,-778.49,0.00011735,2]
[346802594,1735297844102,-8618.13,0.00011735,2]
[346802595,1735297844112,-500.0,0.00011735,2]
[346802596,1735297844123,-3439.75,0.00011738,2]
[346802597,1735297844132,-500.0,0.0001174,2]
[346802598,1735297844142,-2272.09,0.0001174,2]
[346802599,1735297844151,-2201.14,0.00011742,2]
[346802600,1735297844161,-151.0,0.00011744,2]
[346802601,1735297844170,-187.99226672,0.00011969,2]
[346802602,1735297844179,-675.59,0.00012005,2]
[346802603,1735297844190,-841.97,0.00012006,2]
[346802604,1735297844199,-2775.97,0.00012006,2]
[346802605,1735297844208,-939.54,0.00012006,2]
[346802606,1735297844218,-515.98,0.00012006,2]
[346802607,1735297844227,-1096.21,0.00012006,2]
[346802608,1735297844237,-500.0,0.00012006,2]
[346802609,1735297844246,-500.0,0.00012006,2]
[346802610,1735297844256,-500.0,0.00012007,2]
[346802611,1735297844265,-500.0,0.00012007,2]
[346802612,1735297844275,-515.07,0.00012007,2]
[346802613,1735297844285,-500.0,0.00012007,2]
[346802614,1735297844294,-500.0,0.00012007,2]
[346802615,1735297844304,-500.0,0.00012007,2]
[346802616,1735297844314,-500.0,0.00012007,2]
[346802617,1735297844323,-231.80640501,0.00012007,2]
[346802618,1735297844332,-500.0,0.00012007,2]
[346802619,1735297844341,-778.49,0.00012009,2]
[346802620,1735297844351,-8618.13,0.00012009,2]
[346802621,1735297844360,-441.50834613,0.00012009,2]
[346802622,1735297844370,-3439.75,0.00012012,2]
[346802623,1735297844380,-500.0,0.00012014,2]
[346802624,1735297844389,-2272.09,0.00012014,2]
[346802625,1735297844399,-2201.14,0.00012016,2]
[346802626,1735297844408,-675.59,0.00012279,2]
[346802627,1735297844418,-151.0,0.0001228,2]
[346802628,1735297844428,-151.0,0.0001228,2]
[346802629,1735297844438,-177.708206,0.0001228,2]
[346802630,1735297844448,-177.708206,0.0001228,2]
[346802631,1735297844459,-841.97,0.0001228,2]
[346802632,1735297844468,-2775.97,0.0001228,2]
[346802633,1735297844478,-939.54,0.0001228,2]
[346802634,1735297844488,-515.98,0.0001228,2]
[346802635,1735297844498,-1096.21,0.0001228,2]
[346802636,1735297844507,-500.0,0.0001228,2]
[346802637,1735297844516,-417.77537389,0.0001228,2]
[346802638,1735297844526,-500.0,0.00012281,2]
[346802639,1735297844536,-500.0,0.00012281,2]
[346802640,1735297844546,-515.07,0.00012281,2]
[346802641,1735297844555,-500.0,0.00012281,2]
[346802642,1735297844565,-500.0,0.00012281,2]
[346802643,1735297844574,-500.0,0.00012281,2]
[346802644,1735297844584,-500.0,0.00012281,2]
[346802645,1735297844593,-500.0,0.00012281,2]
[346802646,1735297844603,-778.49,0.00012283,2]
[346802647,1735297844612,-8618.13,0.00012283,2]
[346802648,1735297844621,-3439.75,0.00012286,2]
[346802649,1735297844630,-151.0,0.00012286,2]
[346802650,1735297844640,-500.0,0.00012288,2]
[346802651,1735297844649,-2272.09,0.00012288,2]
[346802652,1735297844659,-2201.14,0.0001229,2]
[346802653,1735297844668,-324.0,0.00012332,2]
[346802654,1735297844678,-567.552,0.0001235,2]
[346802655,1735297844688,-197.99672321,0.00012466,2]
[346802656,1735297844697,-197.99672321,0.00012521,2]
[346802657,1735297844707,-675.59,0.00012553,2]
[346802658,1735297844716,-841.97,0.00012554,2]
[346802659,1735297844726,-2775.97,0.00012554,2]
[346802660,1735297844735,-939.54,0.00012554,2]
[346802661,1735297844745,-515.98,0.00012554,2]
[346802662,1735297844754,-1096.21,0.00012554,2]
[346802663,1735297844764,-500.0,0.00012554,2]
[346802664,1735297844773,-500.0,0.00012555,2]
[346802665,1735297844783,-500.0,0.00012555,2]
[346802666,1735297844792,-515.07,0.00012555,2]
[346802667,1735297844802,-500.0,0.00012555,2]
[346802668,1735297844811,-500.0,0.00012555,2]
[346802669,1735297844821,-500.0,0.00012555,2]
[346802670,1735297844834,-500.0,0.00012555,2]
[346802671,1735297844843,-500.0,0.00012555,2]
[346802672,1735297844853,-778.49,0.00012557,2]
[346802673,1735297844863,-8618.13,0.00012557,2]
[346802674,1735297844872,-3439.75,0.00012559,2]
[346802675,1735297844882,-500.0,0.00012562,2]
[346802676,1735297844891,-2272.09,0.00012562,2]
[346802677,1735297844902,-2201.14,0.00012564,2]
[346802678,1735297844912,-197.99672321,0.00012575,2]
[346802679,1735297844922,-197.99672321,0.00012658,2]
[346802680,1735297844931,-197.99672321,0.00012712,2]
[346802681,1735297844941,-197.99672321,0.00012767,2]
[346802682,1735297844951,-197.99672321,0.00012822,2]
[346802683,1735297844961,-675.59,0.00012827,2]
[346802684,1735297844971,-841.97,0.00012828,2]
[346802685,1735297844980,-2775.97,0.00012828,2]
[346802686,1735297844990,-939.54,0.00012828,2]
[346802687,1735297844999,-515.98,0.00012828,2]
[346802688,1735297845009,-1096.21,0.00012828,2]
[346802689,1735297845019,-500.0,0.00012828,2]
[346802690,1735297845029,-500.0,0.00012829,2]
[346802691,1735297845038,-498.75676186,0.00012829,2]
[346802692,1735297845048,-515.07,0.00012829,2]
[346802693,1735297845058,-500.0,0.00012829,2]
[346802694,1735297845069,-500.0,0.00012829,2]
[346802695,1735297845078,-500.0,0.00012829,2]
[346802696,1735297845089,-500.0,0.00012829,2]
[346802697,1735297845099,-500.0,0.00012829,2]
[346802698,1735297845108,-151.0,0.0001283,2]
[346802699,1735297845118,-778.49,0.00012831,2]
[346802700,1735297845127,-8618.13,0.00012831,2]
[346802701,1735297845137,-3439.75,0.00012833,2]
[346802702,1735297845146,-500.0,0.00012836,2]
[346802703,1735297845156,-2272.09,0.00012836,2]
[346802704,1735297845165,-2201.14,0.00012838,2]
[346802705,1735297845175,-153.7263275,0.00012869,2]
[346802706,1735297845185,-197.99672321,0.00012877,2]
[346802707,1735297845194,-197.99672321,0.00012959,2]
[346802708,1735297845204,-151.0,0.00012999,2]
[346802709,1735297845213,-1635.09907844,0.00012999,2]
[346802710,1735297845415,-399.408,0.00010506,2]
[346802711,1735297845425,-187.99226672,0.000129,2]
[346802712,1735297845434,-8128.55676863,0.00012999,2]
[346802713,1735297845444,-87903.07467569,0.00013,2]
[346802714,1735297845457,-11687.96896193,0.00013,2]